Cogmind - Beta 16 @@@ ROGUE MODE // 2025.12.13 @ 18:35:38 Player: AnotherZach Result: Destroyed by as-52873 with Assembled Blade Performance ------------- Evolutions (0) 0 Regions Visited (2) 400 Robots Destroyed (6) 30 Value Destroyed (90) 90 Prototype IDs (0) 0 Alien Tech Used (0) 0 Bonus (-7) -7 TOTAL SCORE: 513 Bonus ------- Friendly Fire -7 Cogmind --------- Core Integrity 0/250 Matter 300/300 Energy 90/100 System Corruption 6% Temperature Cool (0) Movement Walking (120) Location -10/Mines Parts ------- > --- POWER (1) -------- (None) > --- PROPULSION (2) --- Aluminum Leg Aluminum Leg > --- UTILITY (2) ------ Medium Storage Unit > --- WEAPON (2) ------- Bore Cannon > --- INVENTORY (10) --- Light Treads Light Treads Aluminum Leg Compact Wheel High-capacity Matter Pod (94) Improved Terrain Scanner Seismic Detector Peak State ------------ > --- POWER ------------ (None) > --- PROPULSION ------- Aluminum Leg Compact Wheel > --- UTILITY ---------- Medium Storage Unit Propulsion Shielding > --- WEAPON ----------- Assault Rifle Bore Cannon > --- INVENTORY -------- Light Treads Light Treads Aluminum Leg Aluminum Leg Compact Wheel High-capacity Matter Pod Improved Terrain Scanner Seismic Detector [Rating: 11] Favorites ----------- Power Ion Engine Engine Ion Engine Propulsion Compact Wheel Leg Aluminum Leg Wheel Compact Wheel Utility Small Storage Unit Device Seismic Detector Storage Small Storage Unit Protection Propulsion Shielding Weapon Small Laser Energy Gun Small Laser Ballistic Gun Assault Rifle Ballistic Cannon Bore Cannon Build | -11 -10 -10 ------- Run | Yrd Mat Min Slots Evolved . | . . . Power . | . . . Propulsion . | . . . Utility . | . . . Weapon . | . . . Parts Attached 14 | 7 4 3 Power 1 | 1 . . Engine 1 | 1 . . Core . | . . . Reactor . | . . . Propulsion 5 | 2 1 2 Treads . | . . . Leg 2 | . . 2 Wheel 3 | 2 1 . Hover . | . . . Flight . | . . . Utility 4 | 2 2 . Device 1 | 1 . . Storage 2 | 1 1 . Processor . | . . . Hackware . | . . . Protection 1 | . 1 . Artifact . | . . . Weapon 4 | 2 1 1 Energy Gun 2 | 2 . . Energy Cannon . | . . . Ballistic Gun 1 | . 1 . Ballistic Cannon 1 | . . 1 Launcher . | . . . Special Weapon . | . . . Impact Weapon . | . . . Slashing Weapon . | . . . Piercing Weapon . | . . . Special Melee Weapon . | . . . Unidentified Prototypes . | . . . Parts Lost 3 | . . 3 Power . | . . . Propulsion 1 | . . 1 Utility 1 | . . 1 Weapon 1 | . . 1 Highest Loss Streak 3 | . . 3 To Critical Strikes . | . . . Average Backups 6 | 4 8 8 Power . | . . . Propulsion 4 | 3 5 5 Utility 1 | . 2 3 Weapon . | . . . Tool/Special . | . . . Unused Backups 6 | . . 6 Power . | . . . Propulsion 3 | . . 3 Utility 3 | . . 3 Weapon . | . . . Tool/Special . | . . . Average Slot Usage (%) 95 | . 99 79 Engine 10 | . 13 . Wheel 27 | . 28 25 Device 5 | . 7 . Storage 14 | . 14 14 Protection 7 | . 7 11 Energy Gun 21 | . 23 11 Ballistic Gun 5 | . 4 11 Peak Build Rating 11 | 8 8 11 Average Rating 7 | 5 7 7 On Entrance 5 | . 8 7 Avg Prop Armor Cover (%) . | . . . Naked Turns . | . . . Heaviest Build 21 | 13 19 21 Greatest Support 32 | 32 32 26 Greatest Overweight (x) 2 | . . 2 Average Overweight (x) . | . . . Largest Inventory Capacity 10 | 8 10 10 Average Capacity 8 | 7 8 10 Most Carried 9 | 8 9 9 Average Carried 6 | 4 8 8 Final Capacity 10 | 8 10 10 Final Carried 9 | 8 9 7 Class Distribution -------------------- 100% | Mutant Dominant Class ---------------- Mutant | -10/Materials Mutant | -10/Mines Resources | -11 -10 -10 ----------- Run | Yrd Mat Min Matter Collected 405 | 270 86 49 Remotely . | . . . Salvage Created 162 | 76 86 . Parts 12 | 7 5 . Haulers Intercepted . | . . . Recyclers Shooed . | . . . Parts Field Recycled . | . . . Retrieved Matter . | . . . Parts Self-Destructed . | . . . Prevented . | . . . Parts Restored . | . . . Kills | -11 -10 -10 ------- Run | Yrd Mat Min Combat Hostiles Destroyed 2 | . 2 . Guns 2 | . 2 . Classes Destroyed 3 | 2 1 . Worker 1 | 1 . . Tunneler 3 | 3 . . Grunt 2 | . 2 . Best Kill Streak 4 | 4 2 . Combat Bots Only 2 | . 2 . Max Kills in Single Turn 1 | 1 1 . Gunslinging . | . . . Exploded . | . . . Melee . | . . . Uniques/NPCs Destroyed . | . . . Combat | -11 -10 -10 -------- Run | Yrd Mat Min Hostile Shots Fired 92 | . 50 42 Missed 30 | . 16 14 Hits 62 | . 34 28 Melee 11 | . . 11 Projectile 51 | . 34 17 Part Disruptions 1 | . . 1 Damage Taken 907 | . 341 566 Core 275 | . 123 152 Absorbed by Shields . | . . . Redirected to Shielding 23 | . 12 11 Core Remaining (%) 100 | 100 . . Volleys Fired 32 | 11 17 4 Largest 2 | 2 2 2 Hottest 80 | 80 80 60 Shots Fired 62 | 21 34 7 Gun 62 | 21 34 7 Cannon . | . . . Launcher . | . . . Special . | . . . Kinetic 4 | . . 4 Thermal 58 | 21 34 3 Explosive . | . . . Electromagnetic . | . . . Robot Hit Streak 6 | 4 6 3 Robot Miss Streak 3 | 3 3 2 Penetration Max . | . . . Secondary Targets . | . . . Shots Hit Robots 36 | 12 20 4 Core Hits 15 | 5 5 5 Critical Kills . | . . . Critical Parts Destroyed 1 | . . 1 Critical Strikes 1 | . . 1 Destroy 1 | . . 1 Melee Attacks . | . . . Impact . | . . . Slashing . | . . . Piercing . | . . . Sneak Attacks . | . . . Combat Hostiles . | . . . Follow-up Attacks . | . . . Damage Inflicted 427 | 126 230 71 Guns 409 | 126 226 57 Cannons . | . . . Explosions . | . . . Melee . | . . . Ramming 18 | . 4 14 Kinetic 47 | . . 47 Thermal 362 | 126 226 10 Explosive . | . . . Electromagnetic . | . . . Impact . | . . . Slashing . | . . . Piercing . | . . . Highest Corruption 6 | . . 6 Average Corruption 5 | . . 5 Corruption Purged . | . . . Corruption Blocked . | . . . Overload Shots . | . . . Overflow Damage . | . . . Projectiles . | . . . Explosions . | . . . Melee . | . . . Knockbacks . | . . . Impact . | . . . Kinetic . | . . . Secondary . | . . . Self-Inflicted Damage 2 | . 2 . Shots . | . . . Rammed 2 | . 2 . Targets Rammed 7 | . 2 5 Kicked 5 | . . 5 Crushed . | . . . Highest Temperature 252 | 72 252 5 Average Temperature 69 | 28 93 5 Received Heat Transfer 142 | . 102 40 Effects 1 | . 1 . Interference 1 | . 1 . Siege Activations . | . . . Martial Activations . | . . . Shielding Activations . | . . . Robots Disrupted . | . . . Combat Hostiles . | . . . Robots Corrupted . | . . . Combat Hostiles . | . . . Parts Fried . | . . . Impact Corruptions . | . . . Robots Melted . | . . . Combat Hostiles . | . . . Parts Melted 3 | 2 1 . Heat Transferred 825 | 300 500 25 Parts Sabotaged . | . . . Parts Stolen . | . . . Parts Stripped . | . . . Power Chain Reactions . | . . . Alert | -11 -10 -10 ------- Run | Yrd Mat Min Maximum Alert Level . | . . . Low Security (%) 100 | 100 100 100 Level 1 . | . . . Level 2 . | . . . Level 3 . | . . . Level 4 . | . . . Level 5 . | . . . High Security . | . . . Max Security . | . . . Peak Influence 70 | 5 70 15 Initial 15 | . 3 15 Average 18 | 1 31 8 Influence Increases 130 | 20 110 . Destroy 0b10 Robot/C 40 | . 40 . Destroy 0b10 Robot/NC 20 | 20 . . Destroy Leader 10 | . 10 . Select Force Hacks 30 | . 30 . Lose Combat Pursuer 30 | . 30 . Influence Decreases 130 | 15 75 40 Entered New Map 27 | . 2 25 Time Decay 98 | 15 73 10 Lost Part 5 | . . 5 Squads Dispatched 2 | . 2 . Investigation 1 | . 1 . Extermination . | . . . Reinforcement 1 | . 1 . Assault . | . . . Garrison . | . . . Intercept . | . . . Searches Triggered . | . . . Construction Impeded . | . . . Haulers Reinforced . | . . . Active Scanning Responses . | . . . Cargo Convoy Interrupts . | . . . Stealth | -11 -10 -10 --------- Run | Yrd Mat Min Distress Signals 1 | . 1 . Communications Jammed . | . . . Distress Signals . | . . . Times Spotted 31 | . 12 19 Peak Tracking Total 20 | . 7 20 Tactical Retreats 3 | . 1 2 Traps | -11 -10 -10 ------- Run | Yrd Mat Min Traps Triggered 1 | . 1 . Indirectly . | . . . Trap Hack Attempts . | . . . Triggered . | . . . Disarmed . | . . . Reprogrammed . | . . . Reused . | . . . Traps Extracted . | . . . Installed . | . . . Triggered . | . . . Machines | -11 -10 -10 ---------- Run | Yrd Mat Min Machines Disabled . | . . . Max in Single Turn . | . . . Machines Repaired . | . . . Machines Dismantled . | . . . Machines Sabotaged . | . . . Overloaded Fab Kills . | . . . Hacking | -11 -10 -10 --------- Run | Yrd Mat Min Machines Accessed 1 | . 1 . Terminals . | . . . Fabricators . | . . . Repair Stations . | . . . Recycling Units 1 | . 1 . Scanalyzers . | . . . Garrison Access . | . . . Total Hacks 3 | . 3 . Successful 2 | . 2 . Failed 1 | . 1 . Catastrophic . | . . . Database Lockouts . | . . . Manual 1 | . 1 . Terminals . | . . . Fabricators . | . . . Repair Stations . | . . . Recycling Units 3 | . 3 . Scanalyzers . | . . . Garrison Access . | . . . Terminal Hacks . | . . . Fabricator Hacks . | . . . Repair Station Hacks . | . . . Recycling Unit Hacks 1 | . 1 . Retrieve Components 1 | . 1 . Scanalyzer . | . . . Garrison Access Hacks . | . . . Unauthorized Hacks 1 | . 1 . Terminals . | . . . Fabricators . | . . . Repair Stations . | . . . Recycling Units 1 | . 1 . Tunnel 1 | . 1 . Scanalyzers . | . . . Garrison Access . | . . . Data Cores Recovered . | . . . Used . | . . . Hacking Detections . | . . . Full Trace Events . | . . . Feedback Events . | . . . Feedback Blocked . | . . . Robot Schematics Acquired . | . . . Robots Built . | . . . Authchips . | . . . Time . | . . . Total Robot Build Rating . | . . . Part Schematics Acquired . | . . . Parts Built . | . . . Authchips . | . . . Time . | . . . Total Part Build Rating . | . . . Part Studies Acquired . | . . . Parts Repaired . | . . . Time . | . . . Parts Recycled . | . . . Recycled Matter . | . . . Retrieved Matter . | . . . Retrieved Components 3 | . 3 . Parts Scanalyzed . | . . . Part Schematics Acquired . | . . . Parts Damaged . | . . . Bothacking | -11 -10 -10 ------------ Run | Yrd Mat Min Used RIF Installer . | . . . Robots Hacked . | . . . Non-combat . | . . . Combat . | . . . Robot Hacks Applied . | . . . Relay Couplers Released . | . . . Fabnet Peak Effective % . | . . . Robots Rewired . | . . . Allies Hacked . | . . . Hacks Repelled . | . . . Allies | -11 -10 -10 -------- Run | Yrd Mat Min Total Allies . | . . . Largest Group . | . . . Highest-Rated Group . | . . . Highest-Rated Ally . | . . . Total Orders . | . . . Ally Attacks . | . . . Total Damage . | . . . Kills . | . . . Allies Corrupted . | . . . Allies Melted . | . . . Intel | -11 -10 -10 ------- Run | Yrd Mat Min Active Infowar (turns) 128 | 35 93 . Seismic 128 | 35 93 . Robot Analysis Total . | . . . Derelict Logs Recovered . | . . . Drone Launches . | . . . Drone Recoveries . | . . . Exploration | -11 -10 -10 ------------- Run | Yrd Mat Min Turns Passed 346 | 114 193 39 Spaces Moved 211 | 65 134 12 Core 1 | 1 . . Treads . | . . . Legs 1 | . . 1 Wheels 209 | 64 134 11 Hover . | . . . Flight . | . . . Fastest Speed 50 | 50 90 90 Average Speed 99 | 99 98 104 Slowest Speed 260 | 100 100 260 Overloaded Moves . | . . . Propulsion Burnouts . | . . . Robots Hopped . | . . . Potential Cave-ins . | . . . Cave-ins Triggered . | . . . Exploration Rate (%) 11 | 6 23 6 Regions Visited 2 Branch Regions 1 Pre-discovered Areas 1 | . 1 . Known Exits Taken . | . . . Unknown Exits Taken 2 | 1 1 . Scrap Searched . | . . . Spaces Dug . | . . . Terrain Destroyed . | . . . Melee . | . . . Projectile . | . . . AOE . | . . . Terrain Rammed . | . . . Walls Destroyed . | . . . Machines Disabled . | . . . Actions | -11 -10 -10 --------- Run | Yrd Mat Min Total 282 | 90 161 31 Wait 5 | . . 5 Move 209 | 64 133 12 Hop . | . . . Pick Up 10 | 8 2 . Fast Attach 9 | 7 1 1 Attach 3 | . 1 2 Detach . | . . . Swap 2 | . 2 . Drop 5 | . 3 2 Fire 32 | 11 17 4 Melee . | . . . Ram 2 | . 2 . Kick 5 | . . 5 Crush . | . . . Escape Stasis . | . . . Rewire . | . . . Trap . | . . . Miscellaneous . | . . . Route ------- -11/Scrapyard -10/Materials -10/Mines History --------- Turn | Location | Event 29 | -11/Scrapyard | Discovered new exit (range 15) 115 | -11/Scrapyard | Entered Materials 294 | -10/Materials | Discovered new exit (range 16) 306 | -10/Materials | Build established: Mutant 308 | -10/Materials | Entered Mines 309 | -10/Mines | Assembled infested the area 314 | -10/Mines | Assisted by a Guerilla fighting off Assembled 335 | -10/Mines | Core integrity fell below 50% 337 | -10/Mines | Met a Derelict bent on vengeance 343 | -10/Mines | Core integrity fell below 20% 347 | -10/Mines | Destroyed by as-52873 with Assembled Blade Last Messages --------------- 00325_ Destroyed Asb. Hover Unit. 00326_ JP-XG3(h) heat damages Armor Integrity Analyzer. 00326_ Knocked back. 00327_ JP-XG3(h) destroyed. 00331_ Acquired 49 matter. 00332_ Dropped Sml. Laser. 00333_ Acquired Bore Cannon. 00333_ Wheel destroyed. 00333_ System corrupted by crushing effect (+4). 00336_ Propulsion Shielding destroyed. 00336_ System corrupted by crushing effect (+2). 00338_ Assault Rifle destroyed. 00338_ as-49999 destroyed. 00340_ Dropped Com. Wheel. 00341_ as-53044 destroyed. 00342_ Kicked as-67428. 00343_ Kicked as-67428 out of the way. 00345_ Kicked as-42475. 00346_ Kicked as-42475 out of the way. Map ----- +----------------------------------------------------+ | | | | | | | | | | | | | | | | | | | | | | | | | | | | | | | ?????????????????????????????????????????????????? | | ?????????????????????????????????????????????????? | | ?????????????????????????????????????????????????? | | ?????????????????????????????????????????????????? | | ?????????????????????????????????????????????????? | | ?????????????????????????????????????????????????? | | ????????????????????####?????????????????????????? | | ???????????????????##[ ##????????????????????????? | | ??????????????????## a= #????????????????????????? | | ?????????????????## = aa##########???????????????? | | ?????????????????# !a @a ????????? | | ?????????????????# |aaaaa a*% #??????????? | | ?????????????????# ## %###%# < #?????????? | | ?????????????????## ###%##??????? ?????????? | | ??????????????????####?#*#???????????? ?????????? | | ???????????????????????#a#???????????????????????? | | ??????????????????????? a#???????????????????????? | | ??????????????????????? ???????????????????????? | | ??????????????????????? % ???????????????????????? | | ?????????????????????? ???????????????????????? | | ?????????????????????? ???????????????????????? | | ?????????????????????? ???????????????????????? | | ?????????????????????? ??????????????????????? | | ????????????????????? ??????????????????????? | | ?????????????????????# ???????????????????????? | | ???????????????????????## ???????????????????????? | | ?????????????????????????????????????????????????? | | ?????????????????????????????????????????????????? | | ?????????????????????????????????????????????????? | | ?????????????????????????????????????????????????? | | ?????????????????????????????????????????????????? | | ?????????????????????????????????????????????????? | | ?????????????????????????????????????????????????? | | ?????????????????????????????????????????????????? | | ?????????????????????????????????????????????????? | +----------------------------------------------------+ Best States ------------- Heat Dissipation 25 Energy Generation 10 Energy Capacity 250 Matter Stores 300 Matter Capacity 300 Sight Range 16 Terrain Scan Density 10 Propulsion Shielding 33 Evasion (%) 42 Item Schematics ----------------- None Robot Schematics ------------------ None Fabricated ------------ Nothing Repaired ---------- Nothing Studied --------- None Alien Tech Used ----------------- None Achievements -------------- None Challenges ------------ None Game ------ Seed ScrapMolecularSaw Manual? 0 Play Time 00:05:25 Cumulative 752.7 hours Start 2025.12.13 @ 18:31:27 End 2025.12.13 @ 18:35:38 Sessions 1 Manual Loads 0 Difficulty Rogue Special Mode None Game No. 178 Rogue 40 Adventurer 138 Explorer 0 Win Type - Total 11 Types 7/0/1/2/0/0/0/0/1/0 Lore% 78 Gallery% 77 Achievement% 51 Wizard Run 0 Options --------- Layout 2 ASCII 0 Keyboard 0 Movement Mouse Keybinds 0 Fullscreen 1 Font 24/Smallcaps Map View 25x24 Zoom Use 99% Tactical HUD 1 Map Filters NONE Filters NONE Steam 1 RUN: a53d661c-b0dd-4252-9df4-591abb2d8817